[Event "NJSK 2018 Jeugd C"]
[Site "Assen, Netherlands"]
[Date "2018.04.29"]
[Round "1.1"]
[White "Bleeker, Kasper"]
[Black "Van Foreest, Machteld"]
[Result "0-1"]
[TimeControl "40/90m+30sec/move"]
[WhiteElo "1737"]
[BlackElo "2132"]

1. e4 {[%clk 01:30:58]} e5 {[%clk 01:30:57]} {[%emt 00:00:05]} 2. Nf3 {[%clk
01:31:22]} {[%emt 00:00:07]} Nc6 {[%clk 01:31:23]} {[%emt 00:00:05]} 3. d4
{[%clk 01:31:45]} {[%emt 00:00:06]} exd4 {[%clk 01:31:48]} {[%emt 00:00:05]} 4.
Nxd4 {[%clk 01:32:09]} {[%emt 00:00:06]} Nf6 {[%clk 01:32:14]} {[%emt
00:00:04]} 5. Nxc6 {[%clk 01:32:27]} {[%emt 00:00:10]} bxc6 {[%clk 01:32:39]}
{[%emt 00:00:05]} 6. e5 {[%clk 01:32:53]} {[%emt 00:00:05]} Qe7 {[%clk
01:33:06]} {[%emt 00:00:03]} 7. Qe2 {[%clk 01:33:18]} {[%emt 00:00:04]} Nd5
{[%clk 01:33:33]} {[%emt 00:00:03]} 8. c4 {[%clk 01:33:43]} {[%emt 00:00:06]}
Ba6 {[%clk 01:34:01]} 9. b3 {[%clk 01:33:45]} {[%emt 00:00:28]} g6 {[%clk
01:21:12]} {[%emt 00:13:20]} 10. Bb2 {[%clk 01:30:32]} {[%emt 00:03:42]} Bg7
{[%clk 01:20:24]} {[%emt 00:01:18]} 11. g3 {[%clk 01:24:09]} {[%emt 00:06:53]}
O-O {[%clk 01:14:50]} {[%emt 00:06:04]} 12. Bg2 {[%clk 01:20:38]} {[%emt
00:04:01]} Rfe8 {[%clk 01:12:57]} {[%emt 00:02:23]} 13. O-O {[%clk 01:18:16]}
{[%emt 00:02:52]} Bxe5 {[%clk 01:11:37]} {[%emt 00:01:50]} 14. Bxe5 {[%clk
01:18:18]} {[%emt 00:00:28]} Qxe5 {[%clk 01:10:50]} {[%emt 00:01:17]} 15. Qxe5
{[%clk 01:18:15]} {[%emt 00:00:33]} Rxe5 {[%clk 01:11:11]} {[%emt 00:00:09]} 16.
cxd5 {[%clk 01:18:10]} {[%emt 00:00:35]} Bxf1 {[%clk 01:11:34]} {[%emt
00:00:06]} 17. Kxf1 {[%clk 01:18:25]} {[%emt 00:00:17]} cxd5 {[%clk 01:11:25]}
{[%emt 00:00:38]} 18. Nc3 {[%clk 01:18:16]} {[%emt 00:00:38]} c6 {[%clk
01:11:32]} {[%emt 00:00:24]} 19. Rd1 {[%clk 01:16:03]} {[%emt 00:02:43]} Rae8
{[%clk 01:09:59]} {[%emt 00:02:02]} 20. Bf3 {[%clk 01:15:20]} {[%emt 00:01:14]}
f5 {[%clk 01:08:27]} {[%emt 00:02:01]} 21. Kg2 {[%clk 01:14:18]} {[%emt
00:01:32]} Re1 {[%clk 01:06:21]} {[%emt 00:02:35]} 22. Rd4 {[%clk 01:05:53]}
{[%emt 00:08:56]} Rc1 {[%clk 01:02:14]} {[%emt 00:04:37]} 23. Nd1 {[%clk
01:04:56]} {[%emt 00:01:27]} Kf7 {[%clk 00:56:24]} {[%emt 00:06:20]} 24. Ra4
{[%clk 01:02:57]} {[%emt 00:02:29]} Ra8 {[%clk 00:55:58]} {[%emt 00:00:56]} 25.
Ne3 {[%clk 00:59:49]} {[%emt 00:03:38]} Ke6 {[%clk 00:54:37]} {[%emt 00:01:49]}
26. h4 {[%clk 00:41:44]} {[%emt 00:18:38]} Ke5 {[%clk 00:47:11]} {[%emt
00:07:55]} 27. Nd1 {[%clk 00:38:29]} {[%emt 00:03:44]} Rc2 {[%clk 00:41:48]}
{[%emt 00:05:53]} 28. Ne3 {[%clk 00:36:58]} {[%emt 00:02:01]} Rd2 {[%clk
00:37:24]} {[%emt 00:04:53]} 29. Kf1 {[%clk 00:29:57]} {[%emt 00:07:33]} Rd4
{[%clk 00:36:06]} {[%emt 00:01:43]} 30. Ra6 {[%clk 00:27:21]} {[%emt 00:03:09]}
f4 {[%clk 00:33:07]} {[%emt 00:03:30]} 31. Ng4+ {[%clk 00:25:40]} {[%emt
00:02:11]} Kd6 {[%clk 00:26:51]} {[%emt 00:06:45]} 32. Kg2 {[%clk 00:21:40]}
{[%emt 00:04:31]} h5 {[%clk 00:26:25]} {[%emt 00:00:56]} 33. Nf6 {[%clk
00:19:51]} {[%emt 00:02:19]} fxg3 {[%clk 00:26:00]} {[%emt 00:00:55]} 34. Kxg3
{[%clk 00:19:33]} {[%emt 00:00:49]} Kc7 {[%clk 00:22:35]} {[%emt 00:03:55]} 35.
Be2 {[%clk 00:17:11]} {[%emt 00:02:51]} d6 {[%clk 00:19:18]} {[%emt 00:03:48]}
36. Bf1 {[%clk 00:16:50]} {[%emt 00:00:51]} Kb7 {[%clk 00:19:22]} {[%emt
00:00:25]} 37. Ra4 {[%clk 00:09:15]} {[%emt 00:08:05]} Rxa4 {[%clk 00:17:39]}
{[%emt 00:02:14]} 38. bxa4 {[%clk 00:09:44]} {[%emt 00:00:01]} d4 {[%clk
00:12:18]} {[%emt 00:05:51]} 39. Kf4 {[%clk 00:09:58]} {[%emt 00:00:16]} Rf8
{[%clk 00:10:26]} {[%emt 00:02:22]} 40. Kg5 {[%clk 00:10:10]} {[%emt 00:00:17]}
c5 {[%clk 00:10:25]} {[%emt 00:00:31]} 41. Bc4 {[%clk 00:10:05]} {[%emt
00:00:36]} Kc6 {[%clk 00:09:32]} {[%emt 00:01:23]} 42. Kxg6 {[%clk 00:09:52]}
{[%emt 00:00:42]} Rd8 {[%clk 00:06:10]} {[%emt 00:03:51]} 43. Bb5+ {[%clk
00:08:54]} {[%emt 00:01:28]} Kb7 {[%clk 00:06:01]} {[%emt 00:00:40]} 44. Kxh5
{[%clk 00:09:10]} {[%emt 00:00:14]} d5 {[%clk 00:06:15]} {[%emt 00:00:14]} 45.
Kg5 {[%clk 00:08:09]} {[%emt 00:01:32]} c4 {[%clk 00:06:39]} {[%emt 00:00:06]}
46. a5 {[%clk 00:07:03]} {[%emt 00:01:37]} d3 {[%clk 00:06:33]} {[%emt
00:00:36]} 47. h5 {[%clk 00:06:07]} {[%emt 00:01:26]} a6 {[%clk 00:06:20]}
{[%emt 00:00:44]} 48. Ba4 {[%clk 00:06:36]} c3 {[%clk 00:06:42]} {[%emt
00:00:08]} 49. Nd7 {[%clk 00:05:55]} {[%emt 00:01:11]} Rxd7 {[%clk 00:06:44]}
{[%emt 00:00:28]} 50. Bxd7 {[%clk 00:05:43]} {[%emt 00:00:41]} c2 {[%clk
00:07:10]} {[%emt 00:00:05]} 51. f4 {[%clk 00:05:26]} {[%emt 00:00:47]} d2
{[%clk 00:06:37]} {[%emt 00:01:03]} 52. Bg4 {[%clk 00:05:17]} {[%emt 00:00:40]}
c1=Q {[%clk 00:06:58]} {[%emt 00:00:09]} 53. h6 {[%clk 00:05:24]} {[%emt
00:00:23]} Qg1 {[%clk 00:07:21]} {[%emt 00:00:07]} 54. Kf5 {[%clk 00:05:14]}
{[%emt 00:00:40]} Qxg4+ {[%clk 00:06:48]} {[%emt 00:01:02]} 55. Kxg4 {[%clk
00:05:43]} {[%emt 00:00:02]} d1=Q+ {[%clk 00:07:11]} {[%emt 00:00:07]} 0-1

[Event "NJSK 2018 Jeugd C"]
[Site "Assen, Netherlands"]
[Date "2018.04.29"]
[Round "1.2"]
[White "Elgersma, Onno"]
[Black "Yeh, Timo"]
[Result "1-0"]
[TimeControl "40/90m+30sec/move"]
[WhiteElo "2060"]
[BlackElo "1729"]

1. e4 {[%clk 01:30:57]} {[%emt 00:00:03]} e5 {[%clk 01:30:52]} {[%emt
00:00:11]} 2. Nf3 {[%clk 01:31:17]} {[%emt 00:00:09]} Nc6 {[%clk 01:31:16]}
{[%emt 00:00:04]} 3. Bc4 {[%clk 01:31:19]} {[%emt 00:00:28]} Nf6 {[%clk
01:31:40]} {[%emt 00:00:06]} 4. d3 {[%clk 01:31:39]} {[%emt 00:00:12]} Bc5
{[%clk 01:32:03]} {[%emt 00:00:05]} 5. c3 {[%clk 01:31:38]} {[%emt 00:00:31]}
d6 {[%clk 01:31:48]} {[%emt 00:00:45]} 6. Bb3 {[%clk 01:31:16]} {[%emt
00:00:52]} h6 {[%clk 01:30:27]} {[%emt 00:01:51]} 7. h3 {[%clk 01:26:46]}
{[%emt 00:04:59]} Be6 {[%clk 01:29:23]} {[%emt 00:01:35]} 8. Bc2 {[%clk
01:23:46]} {[%emt 00:03:29]} d5 {[%clk 01:21:32]} {[%emt 00:08:21]} 9. Qe2
{[%clk 01:14:52]} {[%emt 00:09:24]} O-O {[%clk 01:07:54]} {[%emt 00:14:08]} 10.
Nbd2 {[%clk 01:07:57]} {[%emt 00:07:26]} a6 {[%clk 01:05:29]} {[%emt 00:02:55]}
11. Nf1 {[%clk 00:56:28]} {[%emt 00:11:57]} d4 {[%clk 01:02:10]} {[%emt
00:03:50]} 12. g4 {[%clk 00:51:34]} {[%emt 00:05:24]} Nh7 {[%clk 01:01:26]}
{[%emt 00:01:14]} 13. Rg1 {[%clk 00:42:38]} {[%emt 00:09:27]} Be7 {[%clk
00:58:10]} {[%emt 00:03:46]} 14. Rh1 {[%clk 00:24:54]} {[%emt 00:18:14]} Bg5
{[%clk 00:56:05]} {[%emt 00:02:34]} 15. Nxg5 {[%clk 00:24:54]} {[%emt
00:00:30]} hxg5 {[%clk 00:54:55]} {[%emt 00:01:42]} 16. Qf3 {[%clk 00:20:19]}
{[%emt 00:05:05]} Ne7 {[%clk 00:52:59]} {[%emt 00:02:26]} 17. cxd4 {[%clk
00:14:11]} {[%emt 00:06:38]} Qxd4 {[%clk 00:51:04]} {[%emt 00:02:24]} 18. h4
{[%clk 00:09:53]} {[%emt 00:04:48]} gxh4 {[%clk 00:49:00]} {[%emt 00:02:35]} 19.
Rxh4 {[%clk 00:08:46]} {[%emt 00:01:36]} Ng6 {[%clk 00:49:02]} {[%emt
00:00:27]} 20. Rh1 {[%clk 00:07:50]} {[%emt 00:01:26]} Qb4+ {[%clk 00:44:55]}
{[%emt 00:04:39]} 21. Nd2 {[%clk 00:05:55]} {[%emt 00:02:24]} Nf4 {[%clk
00:44:34]} {[%emt 00:00:51]} 22. a3 {[%clk 00:05:29]} {[%emt 00:00:56]} Qe7
{[%clk 00:43:46]} {[%emt 00:01:18]} 23. Qg3 {[%clk 00:05:03]} {[%emt 00:00:57]}
Qg5 {[%clk 00:43:08]} {[%emt 00:01:08]} 24. Nf3 {[%clk 00:04:04]} {[%emt
00:01:29]} Qxg4 {[%clk 00:42:19]} {[%emt 00:01:20]} 25. Qxg4 {[%clk 00:04:14]}
{[%emt 00:00:19]} Bxg4 {[%clk 00:42:15]} {[%emt 00:00:34]} 26. Nxe5 {[%clk
00:04:38]} {[%emt 00:00:06]} Nxd3+ {[%clk 00:40:02]} {[%emt 00:02:43]} 27. Bxd3
{[%clk 00:04:59]} {[%emt 00:00:09]} Be6 {[%clk 00:40:25]} {[%emt 00:00:07]} 28.
Be3 {[%clk 00:05:11]} {[%emt 00:00:17]} Rfd8 {[%clk 00:39:23]} {[%emt
00:01:32]} 29. Bc2 {[%clk 00:04:56]} {[%emt 00:00:46]} Nf6 {[%clk 00:39:21]}
{[%emt 00:00:31]} 30. Rd1 {[%clk 00:05:07]} {[%emt 00:00:19]} Bg4 {[%clk
00:38:50]} {[%emt 00:01:01]} 31. Rxd8+ {[%clk 00:05:21]} {[%emt 00:00:17]} Rxd8
{[%clk 00:39:18]} {[%emt 00:00:02]} 32. Bg5 {[%clk 00:05:02]} {[%emt 00:00:48]}
Be6 {[%clk 00:38:54]} {[%emt 00:00:55]} 33. Rg1 {[%clk 00:04:59]} {[%emt
00:00:32]} Kf8 {[%clk 00:38:57]} {[%emt 00:00:27]} 34. Ke2 {[%clk 00:04:05]}
{[%emt 00:01:23]} Re8 {[%clk 00:38:33]} {[%emt 00:00:55]} 35. Bxf6 {[%clk
00:03:08]} {[%emt 00:01:27]} gxf6 {[%clk 00:38:58]} {[%emt 00:00:05]} 36. Nf3
{[%clk 00:03:00]} {[%emt 00:00:38]} Bc4+ {[%clk 00:38:29]} {[%emt 00:00:59]} 37.
Ke3 {[%clk 00:03:11]} {[%emt 00:00:19]} f5 {[%clk 00:37:47]} {[%emt 00:01:13]}
38. Kf4 {[%clk 00:02:54]} {[%emt 00:00:46]} fxe4 {[%clk 00:37:11]} {[%emt
00:01:06]} 39. Bxe4 {[%clk 00:03:09]} {[%emt 00:00:15]} b6 {[%clk 00:37:24]}
{[%emt 00:00:17]} 40. Ne5 {[%clk 00:02:49]} {[%emt 00:00:49]} Bb5 {[%clk
00:37:17]} {[%emt 00:00:37]} 41. Nxf7 {[%clk 00:02:05]} {[%emt 00:01:14]} Rxe4+
{[%clk 00:36:47]} {[%emt 00:01:00]} 42. Kxe4 {[%clk 00:02:29]} {[%emt
00:00:05]} Kxf7 {[%clk 00:37:16]} {[%emt 00:00:02]} 43. Ke5 {[%clk 00:02:50]}
{[%emt 00:00:09]} Bc4 {[%clk 00:34:13]} {[%emt 00:03:33]} 44. f4 {[%clk
00:03:12]} {[%emt 00:00:08]} b5 {[%clk 00:34:14]} {[%emt 00:00:29]} 45. f5
{[%clk 00:03:29]} {[%emt 00:00:12]} a5 {[%clk 00:34:17]} {[%emt 00:00:28]} 46.
f6 {[%clk 00:03:34]} {[%emt 00:00:25]} c6 {[%clk 00:34:22]} {[%emt 00:00:24]}
47. Rg7+ {[%clk 00:03:58]} {[%emt 00:00:06]} Kf8 {[%clk 00:34:40]} {[%emt
00:00:12]} 48. Rc7 {[%clk 00:03:57]} {[%emt 00:00:31]} Bd5 {[%clk 00:35:04]}
{[%emt 00:00:06]} 49. Kf5 {[%clk 00:03:33]} {[%emt 00:00:54]} b4 {[%clk
00:35:20]} {[%emt 00:00:15]} 50. axb4 {[%clk 00:03:31]} {[%emt 00:00:32]} axb4
{[%clk 00:35:46]} {[%emt 00:00:04]} 51. Ke5 {[%clk 00:03:15]} {[%emt 00:00:45]}
b3 {[%clk 00:35:06]} {[%emt 00:01:10]} 52. Rb7 {[%clk 00:01:48]} {[%emt
00:01:58]} Bc4 {[%clk 00:33:20]} {[%emt 00:02:16]} 53. f7 {[%clk 00:00:51]}
{[%emt 00:01:27]} Bxf7 {[%clk 00:33:13]} {[%emt 00:00:37]} 54. Kf6 {[%clk
00:01:14]} {[%emt 00:00:07]} Bh5 {[%clk 00:32:28]} {[%emt 00:01:13]} 55. Rb8+
{[%clk 00:01:35]} {[%emt 00:00:11]} Be8 {[%clk 00:32:56]} {[%emt 00:00:02]} 56.
Rc8 {[%clk 00:01:45]} {[%emt 00:00:20]} c5 {[%clk 00:33:03]} {[%emt 00:00:23]}
57. Rb8 {[%clk 00:01:09]} {[%emt 00:01:05]} c4 {[%clk 00:33:17]} {[%emt
00:00:16]} 58. Rc8 {[%clk 00:01:22]} {[%emt 00:00:17]} c3 {[%clk 00:33:40]}
{[%emt 00:00:08]} 59. bxc3 {[%clk 00:01:04]} {[%emt 00:00:47]} b2 {[%clk
00:34:03]} {[%emt 00:00:07]} 60. Rb8 {[%clk 00:01:31]} {[%emt 00:00:04]} 1-0

[Event "NJSK 2018 Jeugd C"]
[Site "Assen, Netherlands"]
[Date "2018.04.29"]
[Round "1.3"]
[White "Brandsma, Romayn"]
[Black "Pham, Khoi"]
[Result "0-1"]
[TimeControl "40/90m+30sec/move"]
[WhiteElo "1715"]
[BlackElo "1983"]

1. e4 {[%clk 01:30:59]} {[%emt 21:16:00]} c5 {[%clk 01:30:50]} {[%emt
00:00:14]} 2. Nc3 {[%clk 01:31:23]} {[%emt 00:00:06]} Nc6 {[%clk 01:31:00]}
{[%emt 00:00:19]} 3. f4 {[%clk 01:31:43]} {[%emt 00:00:08]} g6 {[%clk
01:30:58]} {[%emt 00:00:32]} 4. Nf3 {[%clk 01:32:01]} {[%emt 00:00:11]} Bg7
{[%clk 01:31:20]} {[%emt 00:00:09]} 5. Bc4 {[%clk 01:32:18]} {[%emt 00:00:13]}
e6 {[%clk 01:31:42]} {[%emt 00:00:08]} 6. d3 {[%clk 01:32:31]} {[%emt
00:00:17]} Nge7 {[%clk 01:31:36]} {[%emt 00:00:36]} 7. O-O {[%clk 01:32:22]}
{[%emt 00:00:39]} O-O {[%clk 01:31:24]} {[%emt 00:00:42]} 8. Bb3 {[%clk
01:31:30]} {[%emt 00:01:22]} d5 {[%clk 01:30:01]} {[%emt 00:01:52]} 9. Qe1
{[%clk 01:29:23]} {[%emt 00:02:36]} Na5 {[%clk 01:29:12]} {[%emt 00:01:21]} 10.
exd5 {[%clk 01:26:15]} {[%emt 00:03:38]} Nxb3 {[%clk 01:28:26]} {[%emt
00:01:16]} 11. axb3 {[%clk 01:26:18]} {[%emt 00:00:27]} exd5 {[%clk 01:28:36]}
{[%emt 00:00:20]} 12. h3 {[%clk 01:17:21]} {[%emt 00:09:26]} Nf5 {[%clk
01:22:04]} {[%emt 00:07:03]} 13. g4 {[%clk 01:14:16]} {[%emt 00:03:35]} Re8
{[%clk 01:22:11]} {[%emt 00:00:23]} 14. Qf2 {[%clk 01:11:24]} {[%emt 00:03:20]}
Nd4 {[%clk 01:21:58]} {[%emt 00:00:44]} 15. f5 {[%clk 01:07:35]} {[%emt
00:04:20]} gxf5 {[%clk 01:18:43]} {[%emt 00:03:45]} 16. gxf5 {[%clk 01:06:35]}
{[%emt 00:01:30]} Bxf5 {[%clk 01:18:35]} {[%emt 00:00:39]} 17. Nh4 {[%clk
00:56:25]} {[%emt 00:10:40]} Bxh3 {[%clk 01:12:35]} {[%emt 00:06:30]} 18. Qxf7+
{[%clk 00:54:45]} {[%emt 00:02:09]} Kh8 {[%clk 01:13:00]} {[%emt 00:00:06]} 19.
Rf4 {[%clk 00:51:12]} {[%emt 00:04:02]} Qg5+ {[%clk 01:00:34]} {[%emt
00:12:56]} 20. Kh2 {[%clk 00:50:11]} {[%emt 00:01:32]} Be6 {[%clk 01:00:26]}
{[%emt 00:00:39]} 21. Qxe8 {[%clk 00:43:23]} {[%emt 00:07:16]} Rxe8 {[%clk
01:00:38]} {[%emt 00:00:19]} 22. Rf8 {[%clk 00:43:43]} {[%emt 00:00:09]} Rxf8
{[%clk 01:00:21]} {[%emt 00:00:47]} 23. Bxg5 {[%clk 00:44:04]} {[%emt
00:00:09]} Be5 {[%clk 01:00:17]} {[%emt 00:00:35]} 24. Kh1 {[%clk 00:43:54]}
{[%emt 00:00:40]} Rg8 {[%clk 00:58:19]} {[%emt 00:02:29]} 25. Be7 {[%clk
00:43:08]} {[%emt 00:01:15]} b6 {[%clk 00:50:51]} {[%emt 00:07:58]} 26. Re1
{[%clk 00:42:24]} {[%emt 00:01:13]} Re8 {[%clk 00:44:48]} {[%emt 00:06:35]} 27.
Rxe5 {[%clk 00:40:09]} {[%emt 00:02:44]} Rxe7 {[%clk 00:45:05]} {[%emt
00:00:14]} 28. Nxd5 {[%clk 00:40:17]} {[%emt 00:00:21]} Bxd5 {[%clk 00:39:03]}
{[%emt 00:06:34]} 29. Rxd5 {[%clk 00:40:37]} {[%emt 00:00:09]} Rf7 {[%clk
00:38:09]} {[%emt 00:01:23]} 30. c3 {[%clk 00:39:28]} {[%emt 00:01:39]} Ne2
{[%clk 00:34:48]} {[%emt 00:03:52]} 31. Nf5 {[%clk 00:38:48]} {[%emt 00:01:09]}
Rxf5 {[%clk 00:35:10]} {[%emt 00:00:08]} 0-1

[Event "NJSK 2018 Jeugd C"]
[Site "Assen, Netherlands"]
[Date "2018.04.29"]
[Round "1.4"]
[White "Roebers, Eline"]
[Black "Klaren, Duncan"]
[Result "1/2-1/2"]
[TimeControl "40/90m+30sec/move"]
[WhiteElo "1961"]
[BlackElo "1713"]

1. e4 {[%clk 01:30:57]} {[%emt 00:00:02]} c5 {[%clk 01:30:55]} {[%emt
00:00:07]} 2. a3 {[%clk 01:30:58]} {[%emt 00:00:30]} g6 {[%clk 01:31:13]}
{[%emt 00:00:10]} 3. b4 {[%clk 01:24:29]} {[%emt 00:06:58]} Bg7 {[%clk
01:31:13]} {[%emt 00:00:30]} 4. c3 {[%clk 01:23:58]} {[%emt 00:01:01]} Qc7
{[%clk 01:14:52]} {[%emt 00:16:51]} 5. bxc5 {[%clk 01:14:24]} {[%emt 00:10:03]}
Nf6 {[%clk 01:14:54]} {[%emt 00:00:28]} 6. Qc2 {[%clk 01:07:22]} {[%emt
00:07:32]} e5 {[%clk 01:02:14]} {[%emt 00:13:11]} 7. d4 {[%clk 00:57:43]}
{[%emt 00:10:08]} O-O {[%clk 01:02:15]} {[%emt 00:00:29]} 8. Bd3 {[%clk
00:45:20]} {[%emt 00:12:53]} Re8 {[%clk 00:55:25]} {[%emt 00:07:21]} 9. Ne2
{[%clk 00:38:29]} {[%emt 00:07:21]} b6 {[%clk 00:45:55]} {[%emt 00:10:00]} 10.
cxb6 {[%clk 00:35:33]} {[%emt 00:03:27]} axb6 {[%clk 00:46:16]} {[%emt
00:00:09]} 11. d5 {[%clk 00:33:02]} {[%emt 00:03:00]} Ba6 {[%clk 00:45:22]}
{[%emt 00:01:24]} 12. O-O {[%clk 00:29:04]} {[%emt 00:04:27]} Bxd3 {[%clk
00:44:13]} {[%emt 00:01:40]} 13. Qxd3 {[%clk 00:29:26]} {[%emt 00:00:08]} Na6
{[%emt 00:00:37]} 14. f3 {[%clk 00:26:42]} {[%emt 00:03:14]} Nc5 {[%clk
00:43:48]} {[%emt 00:00:48]} 15. Qc2 {[%clk 00:24:55]} {[%emt 00:02:17]} Rec8
{[%clk 00:42:43]} {[%emt 00:01:35]} 16. Be3 {[%clk 00:22:38]} {[%emt 00:02:47]}
d6 {[%clk 00:41:46]} {[%emt 00:01:28]} 17. Kh1 {[%clk 00:16:15]} {[%emt
00:06:51]} Na4 {[%clk 00:37:23]} {[%emt 00:04:55]} 18. Rd1 {[%clk 00:10:27]}
{[%emt 00:06:17]} Nd7 {[%clk 00:34:37]} {[%emt 00:03:17]} 19. Qa2 {[%clk
00:04:30]} {[%emt 00:06:27]} b5 {[%clk 00:26:05]} {[%emt 00:09:02]} 20. Rc1
{[%clk 00:03:26]} {[%emt 00:01:33]} Qc4 {[%clk 00:20:51]} {[%emt 00:05:44]} 21.
Qxc4 {[%clk 00:02:46]} {[%emt 00:01:10]} bxc4 {[%clk 00:21:20]} {[%emt
00:00:01]} 22. Nd2 {[%clk 00:02:21]} {[%emt 00:00:54]} Ndc5 {[%clk 00:19:13]}
{[%emt 00:02:37]} 23. Rcb1 {[%clk 00:01:33]} {[%emt 00:01:18]} Nd3 {[%clk
00:18:15]} {[%emt 00:01:29]} 24. Rb7 {[%clk 00:01:16]} {[%emt 00:00:47]} Nac5
{[%clk 00:17:39]} {[%emt 00:01:07]} 25. Rb6 {[%clk 00:01:08]} {[%emt 00:00:37]}
Bf8 {[%clk 00:17:07]} {[%emt 00:01:02]} 26. Bxc5 {[%clk 00:00:47]} {[%emt
00:00:51]} Nxc5 {[%clk 00:17:19]} {[%emt 00:00:18]} 27. Rb4 {[%clk 00:00:48]}
{[%emt 00:00:29]} Bh6 {[%clk 00:17:32]} {[%emt 00:00:18]} 28. Nxc4 {[%clk
00:00:50]} {[%emt 00:00:28]} Nd3 {[%clk 00:17:35]} {[%emt 00:00:26]} 29. Nxd6
{[%clk 00:00:44]} {[%emt 00:00:36]} Rd8 {[%clk 00:17:18]} {[%emt 00:00:47]} 30.
Rb6 {[%clk 00:00:58]} {[%emt 00:00:15]} Be3 {[%clk 00:17:39]} {[%emt 00:00:09]}
31. Nc4 {[%clk 00:00:51]} {[%emt 00:00:38]} Bxb6 {[%clk 00:17:48]} {[%emt
00:00:22]} 32. Nxb6 {[%clk 00:01:17]} {[%emt 00:00:05]} Ra6 {[%clk 00:17:53]}
{[%emt 00:00:24]} 33. Nc4 {[%clk 00:01:13]} {[%emt 00:00:33]} Rc8 {[%clk
00:17:39]} {[%emt 00:00:45]} 34. Nd2 {[%clk 00:00:44]} {[%emt 00:00:59]} Kf8
{[%clk 00:18:03]} {[%emt 00:00:06]} 35. Kg1 {[%clk 00:00:39]} {[%emt 00:00:35]}
Ke7 {[%clk 00:18:24]} {[%emt 00:00:10]} 36. Kf1 {[%clk 00:00:36]} {[%emt
00:00:32]} Rb8 {[%clk 00:18:31]} {[%emt 00:00:24]} 37. Nc4 {[%clk 00:00:37]}
{[%emt 00:00:28]} Ra4 {[%clk 00:18:48]} {[%emt 00:00:14]} 38. Ne3 {[%clk
00:00:35]} {[%emt 00:00:32]} Rb3 {[%clk 00:18:39]} {[%emt 00:00:39]} 39. Rd1
{[%clk 00:00:32]} {[%emt 00:00:33]} Nb2 {[%clk 00:18:19]} {[%emt 00:00:49]} 40.
d6+ {[%clk 00:00:41]} {[%emt 00:00:22]} Kd7 {[%clk 00:18:34]} {[%emt 00:00:16]}
41. Rd5 {[%clk 00:00:41]} {[%emt 00:00:29]} Raxa3 {[%clk 00:18:49]} {[%emt
00:00:15]} 42. Ng4 {[%clk 00:00:41]} {[%emt 00:00:29]} Nc4 {[%clk 00:18:39]}
{[%emt 00:00:40]} 43. Nxe5+ {[%clk 00:00:46]} {[%emt 00:00:25]} Nxe5 {[%clk
00:19:04]} {[%emt 00:00:05]} 44. Rxe5 {[%clk 00:01:10]} {[%emt 00:00:06]} Kxd6
{[%clk 00:19:20]} {[%emt 00:00:14]} 45. Rd5+ {[%clk 00:01:24]} {[%emt
00:00:16]} Ke7 {[%clk 00:19:47]} {[%emt 00:00:04]} 46. Rd2 {[%clk 00:01:07]}
{[%emt 00:00:46]} Rb7 {[%clk 00:18:33]} {[%emt 00:01:45]} 47. Kf2 {[%clk
00:01:09]} {[%emt 00:00:28]} Rd7 {[%clk 00:18:34]} {[%emt 00:00:29]} 48. Rxd7+
{[%clk 00:00:48]} {[%emt 00:00:51]} Kxd7 {[%clk 00:18:59]} {[%emt 00:00:05]} 49.
Ke3 {[%clk 00:01:09]} {[%emt 00:00:08]} Kd6 {[%clk 00:19:07]} {[%emt 00:00:18]}
50. Kd3 {[%clk 00:00:39]} {[%emt 00:01:04]} Kc5 {[%clk 00:19:06]} {[%emt
00:00:31]} 51. g3 {[%clk 00:00:34]} {[%emt 00:00:36]} Ra1 {[%clk 00:19:24]}
{[%emt 00:00:12]} 52. h4 {[%clk 00:00:38]} {[%emt 00:00:26]} Rf1 {[%clk
00:18:51]} {[%emt 00:01:04]} 53. Ke3 {[%clk 00:00:37]} {[%emt 00:00:31]} Kc4
{[%clk 00:18:58]} {[%emt 00:00:23]} 54. f4 {[%clk 00:00:36]} {[%emt 00:00:30]}
Ra1 {[%clk 00:18:42]} {[%emt 00:00:47]} 55. Kd2 {[%clk 00:00:39]} {[%emt
00:00:27]} f6 {[%clk 00:18:00]} {[%emt 00:01:12]} 56. Ke3 {[%clk 00:00:38]}
{[%emt 00:00:31]} Ra2 {[%clk 00:18:14]} {[%emt 00:00:15]} 57. e5 {[%clk
00:00:33]} {[%emt 00:00:36]} fxe5 {[%clk 00:18:21]} {[%emt 00:00:22]} 58. fxe5
{[%clk 00:00:43]} {[%emt 00:00:21]} Kd5 {[%clk 00:18:18]} {[%emt 00:00:31]} 59.
Nc1 {[%clk 00:00:34]} {[%emt 00:00:41]} Ra1 {[%clk 00:17:55]} {[%emt 00:00:53]}
60. Nd3 {[%clk 00:00:37]} {[%emt 00:00:27]} Ra3 {[%clk 00:17:10]} {[%emt
00:01:15]} 61. Kd2 {[%clk 00:00:36]} {[%emt 00:00:32]} Ke4 {[%clk 00:16:57]}
{[%emt 00:00:43]} 62. Nf4 {[%clk 00:00:33]} {[%emt 00:00:33]} Kxe5 {[%clk
00:17:06]} {[%emt 00:00:21]} 63. h5 {[%clk 00:00:31]} {[%emt 00:00:32]} g5
{[%clk 00:16:44]} {[%emt 00:00:52]} 64. Nh3 {[%clk 00:00:36]} {[%emt 00:00:24]}
h6 {[%clk 00:16:09]} {[%emt 00:01:05]} 65. Nf2 {[%clk 00:00:43]} {[%emt
00:00:23]} Ra2+ {[%clk 00:16:21]} {[%emt 00:00:19]} 66. Ke3 {[%clk 00:01:03]}
{[%emt 00:00:10]} Kf5 {[%clk 00:15:27]} {[%emt 00:01:25]} 67. g4+ {[%clk
00:00:54]} {[%emt 00:00:39]} Ke6 {[%clk 00:15:22]} {[%emt 00:00:35]} 68. Nd3
{[%clk 00:00:37]} {[%emt 00:00:47]} Rc2 {[%clk 00:15:28]} {[%emt 00:00:23]} 69.
Kd4 {[%clk 00:00:35]} {[%emt 00:00:33]} Rg2 {[%clk 00:15:51]} {[%emt 00:00:07]}
70. Ne5 {[%clk 00:00:40]} {[%emt 00:00:25]} Rd2+ {[%clk 00:16:12]} {[%emt
00:00:09]} 71. Ke3 {[%clk 00:01:05]} {[%emt 00:00:05]} Rc2 {[%clk 00:16:18]}
{[%emt 00:00:21]} 72. Kd4 {[%clk 00:01:04]} {[%emt 00:00:33]} Rxc3 {[%clk
00:15:43]} {[%emt 00:01:07]} 73. Nf7 {[%clk 00:00:54]} {[%emt 00:00:39]} Rc7
{[%clk 00:12:23]} {[%emt 00:03:46]} 74. Nxh6 {[%clk 00:01:16]} {[%emt
00:00:12]} Ra7 {[%clk 00:12:31]} {[%emt 00:00:22]} 75. Ke4 {[%clk 00:01:08]}
{[%emt 00:00:38]} Ra4+ {[%clk 00:12:13]} {[%emt 00:00:49]} 76. Kf3 {[%clk
00:01:16]} {[%emt 00:00:21]} Ke5 {[%clk 00:11:33]} {[%emt 00:01:10]} 77. Nf7+
{[%clk 00:01:04]} {[%emt 00:00:42]} Kf6 {[%clk 00:11:48]} {[%emt 00:00:16]} 78.
Nd6 {[%clk 00:00:55]} {[%emt 00:00:38]} Ke5 {[%clk 00:11:47]} {[%emt 00:00:30]}
79. Nf7+ {[%clk 00:01:20]} {[%emt 00:00:06]} Kf6 {[%clk 00:12:03]} {[%emt
00:00:14]} 80. Nd6 {[%clk 00:01:42]} {[%emt 00:00:07]} 1/2-1/2